bitfinex-derivatives/quotes_ETHF0:USTF0_20260117
["timestamp","ask_amount","ask_price","bid_price","bid_amount"]
[1768640435290,0.87462199,3298.9,3297.9,0.63939108]
[1768640435490,0.00373742,3299.3,3297.9,0.63939108]
[1768640435681,1.12902181,3299.2,3297.9,0.63939108]
[1768640435883,1.12902181,3299.1,3297.9,0.63939108]
[1768640436086,0.87461409,3299.0,3297.9,0.63939108]
[1768640436286,0.87461409,3298.9,3297.9,0.63939108]
[1768640436489,0.00373742,3299.3,3297.9,0.63939108]
[1768640436691,1.12901282,3299.2,3297.9,0.63939108]
[1768640436899,1.12901282,3299.1,3297.9,0.63939108]
[1768640437085,0.8746071,3299.0,3297.9,0.63939108]
[1768640437285,0.8746071,3298.9,3297.9,0.63939108]
[1768640437488,0.00373742,3299.3,3297.9,0.63939108]
[1768640437687,1.12901352,3299.2,3297.9,0.63939108]
[1768640437889,1.12901352,3299.1,3297.9,0.63939108]
[1768640438090,0.87460758,3299.0,3297.9,0.63939108]
[1768640438289,0.87460758,3298.9,3297.9,0.63939108]
[1768640438492,0.00373742,3299.3,3297.9,0.63939108]
[1768640438694,1.12901313,3299.2,3297.9,0.63939108]
[1768640438905,1.12901313,3299.1,3297.9,0.63939108]
[1768640439082,0.87460727,3299.0,3297.9,0.63939108]
[1768640439287,0.87460727,3298.9,3297.9,0.63939108]
[1768640439488,0.00373742,3299.3,3297.9,0.63939108]
[1768640439786,1.12901404,3299.2,3297.9,0.63939108]
[1768640439983,1.12901404,3299.1,3297.9,0.63939108]
[1768640440190,0.87460796,3299.0,3297.9,0.63939108]
[1768640440390,0.87460796,3298.9,3297.9,0.63939108]
[1768640440591,0.00373742,3299.3,3297.9,0.63939108]
[1768640440794,1.12901601,3299.2,3297.9,0.63939108]
[1768640441092,1.12901601,3299.1,3297.9,0.63939108]
[1768640441295,0.87460946,3299.0,3297.9,0.63939108]
[1768640441490,0.87460946,3298.9,3297.9,0.63939108]
[1768640441690,0.00373742,3299.3,3297.9,0.63939108]
[1768640441890,1.12901793,3299.2,3297.9,0.63939108]
[1768640442091,1.12901793,3299.1,3297.9,0.63939108]
[1768640442290,0.87461092,3299.0,3297.9,0.63939108]
[1768640442498,0.87461092,3298.9,3297.9,0.63939108]
[1768640442692,0.87461092,3298.8,3297.9,0.63939108]
[1768640442900,0.87461092,3298.7,3297.9,0.63939108]
[1768640443101,0.87461092,3298.6,3297.9,0.63939108]
[1768640443401,0.00373742,3299.3,3297.9,0.63939108]
[1768640443591,1.12902706,3299.2,3297.9,0.63939108]
[1768640443901,1.12902706,3299.1,3297.9,0.63939108]
[1768640444085,0.87461799,3299.0,3297.9,0.63939108]
[1768640444289,0.87461799,3298.9,3297.9,0.63939108]
[1768640444495,0.87461799,3298.8,3297.9,0.63939108]
[1768640444696,0.87461799,3298.7,3297.9,0.63939108]
[1768640444996,0.87461799,3298.6,3297.9,0.63939108]
[1768640445195,0.00373742,3299.3,3297.9,0.63939108]
[1768640445397,1.12903398,3299.2,3297.9,0.63939108]
[1768640445598,1.12903398,3299.1,3297.9,0.63939108]
[1768640445801,0.87462336,3299.0,3297.9,0.63939108]
[1768640446096,0.87462336,3298.9,3297.9,0.63939108]
[1768640446305,0.87462336,3298.8,3297.9,0.63939108]
[1768640446497,0.87462336,3298.7,3297.9,0.63939108]
[1768640446697,0.87462336,3298.6,3297.9,0.63939108]
[1768640446900,0.00373742,3299.3,3297.9,0.63939108]
[1768640447198,1.1290553,3299.2,3297.9,0.63939108]
[1768640447400,1.1290553,3299.1,3297.9,0.63939108]
[1768640447700,0.87463975,3299.0,3297.9,0.63939108]
[1768640447889,0.87463975,3298.9,3297.9,0.63939108]
[1768640448090,0.87463975,3298.8,3297.9,0.63939108]
[1768640448302,0.87463975,3298.7,3297.9,0.63939108]
[1768640448503,0.87463975,3298.6,3297.9,0.63939108]
[1768640448706,0.00373742,3299.3,3297.9,0.63939108]
[1768640449004,1.12906199,3299.2,3297.9,0.63939108]
[1768640449194,1.12906199,3299.1,3297.9,0.63939108]
[1768640449395,0.87464493,3299.0,3297.9,0.63939108]
[1768640449694,0.87464493,3298.9,3297.9,0.63939108]
[1768640449897,0.87464493,3298.8,3297.9,0.63939108]
[1768640450090,0.87464493,3298.7,3297.9,0.63939108]
[1768640450303,0.87464493,3298.6,3297.9,0.63939108]
[1768640450496,0.00373742,3299.3,3297.9,0.63939108]
[1768640450697,1.12907056,3299.2,3297.9,0.63939108]
[1768640450900,1.12907056,3299.1,3297.9,0.63939108]
[1768640451102,0.87465179,3299.0,3297.9,0.63939108]
[1768640451301,0.87465179,3298.9,3297.9,0.63939108]
[1768640451601,0.87465179,3298.8,3297.9,0.63939108]
[1768640451801,0.87465179,3298.7,3297.9,0.63939108]
[1768640452001,0.00373742,3299.3,3297.9,0.63939108]
[1768640452200,1.12907609,3299.2,3297.9,0.63939108]
[1768640452401,1.12907609,3299.1,3297.9,0.63939108]
[1768640452600,0.00373742,3299.3,3297.9,0.63939108]
[1768640452601,0.87465608,3299.0,3297.9,0.63939108]
[1768640452900,0.87465608,3298.9,3297.9,0.63939108]
[1768640453101,0.87465608,3298.8,3297.9,0.63939108]
[1768640453303,0.00373742,3299.3,3297.9,0.63939108]
[1768640453505,1.12909404,3299.2,3297.9,0.63939108]
[1768640453706,1.12909404,3299.1,3297.9,0.63939108]
[1768640454003,0.87466994,3299.0,3297.9,0.63939108]
[1768640454204,0.87466994,3298.9,3297.9,0.63939108]
[1768640454393,0.87466994,3298.8,3297.9,0.63939108]
[1768640454596,0.00373742,3299.3,3297.9,0.63939108]
[1768640454892,1.12870612,3299.2,3297.9,0.63939108]
[1768640455096,1.12870825,3299.1,3297.9,0.63939108]
[1768640455396,0.87427968,3299.0,3297.9,0.63939108]
[1768640455596,0.87427968,3298.9,3297.9,0.63939108]
[1768640455797,0.87427968,3298.8,3297.9,0.63939108]
[1768640456001,0.00373742,3299.3,3297.9,0.63939108]
[1768640456201,1.12871292,3299.2,3297.9,0.63939108]
[1768640456401,1.12871292,3299.1,3297.9,0.63939108]
[1768640456699,0.87428487,3299.0,3297.9,0.63939108]
[1768640456899,0.87428487,3298.9,3297.9,0.63939108]
[1768640457100,0.87428487,3298.8,3297.9,0.63939108]
[1768640457301,0.00373742,3299.3,3297.9,0.63939108]
[1768640457594,1.12871832,3299.2,3297.9,0.63939108]
[1768640457804,1.12871832,3299.1,3297.9,0.63939108]
[1768640458005,0.87428895,3299.0,3297.9,0.63939108]
[1768640458205,0.87428895,3298.9,3297.9,0.63939108]
[1768640458406,0.87428895,3298.8,3297.9,0.63939108]
[1768640458606,0.00373742,3299.3,3297.9,0.63939108]
[1768640458808,1.12872209,3299.2,3297.9,0.63939108]
[1768640459006,1.12872209,3299.1,3297.9,0.63939108]
[1768640459207,0.87429186,3299.0,3297.9,0.63939108]
[1768640459412,0.87429186,3298.9,3297.9,0.63939108]
[1768640459709,0.87429186,3298.8,3297.9,0.63939108]
[1768640460014,0.00373742,3299.3,3297.9,0.63939108]
[1768640460207,1.12872635,3299.2,3297.9,0.63939108]
[1768640460510,1.12872635,3299.1,3297.9,0.63939108]
[1768640460702,0.87429516,3299.0,3297.9,0.63939108]
[1768640460903,0.87429516,3298.9,3297.9,0.63939108]
[1768640461202,0.87429516,3298.8,3297.9,0.63939108]
[1768640461402,0.00373742,3299.3,3297.9,0.63939108]
[1768640461611,1.1287334,3299.2,3297.9,0.63939108]
[1768640461824,1.1287334,3299.1,3297.9,0.63939108]
[1768640462004,0.87430079,3299.0,3297.9,0.63939108]
[1768640462300,0.87430079,3298.9,3297.9,0.63939108]
[1768640462504,0.87430079,3298.8,3297.9,0.63939108]
[1768640462807,0.00373742,3299.3,3297.9,0.63939108]
[1768640463007,1.12874158,3299.2,3297.9,0.63939108]
[1768640463301,1.12874158,3299.1,3297.9,0.63939108]
[1768640463502,0.87430711,3299.0,3297.9,0.63939108]
[1768640463710,0.87430711,3298.9,3297.9,0.63939108]
[1768640463914,0.87430711,3298.8,3297.9,0.63939108]
[1768640464210,0.00373742,3299.3,3297.9,0.63939108]
[1768640464416,1.12874696,3299.2,3297.9,0.63939108]
[1768640464614,1.12874696,3299.1,3297.9,0.63939108]
[1768640464913,0.87431025,3299.0,3297.9,0.63939108]
[1768640465111,0.87431025,3298.9,3297.9,0.63939108]
[1768640465413,0.87431025,3298.8,3297.9,0.63939108]
[1768640465713,0.00373742,3299.3,3297.9,0.63939108]
[1768640465913,1.12875487,3299.2,3297.9,0.63939108]
[1768640466114,1.12875487,3299.1,3297.9,0.63939108]
[1768640466304,0.87431739,3299.0,3297.9,0.63939108]
[1768640466504,0.87431739,3298.9,3297.9,0.63939108]
[1768640466705,0.87431739,3298.8,3297.9,0.63939108]
[1768640466906,0.00373742,3299.3,3297.9,0.63939108]
[1768640467105,1.1287604,3299.2,3297.9,0.63939108]
[1768640467306,1.1287604,3299.1,3297.9,0.63939108]
[1768640467513,0.87432158,3299.0,3297.9,0.63939108]
[1768640467712,0.87432158,3298.9,3297.9,0.63939108]
[1768640467915,0.87432158,3298.8,3297.9,0.63939108]
[1768640468116,0.00373742,3299.3,3297.9,0.63939108]
[1768640468316,1.12876042,3299.2,3297.9,0.63939108]
[1768640468520,1.12876042,3299.1,3297.9,0.63939108]
[1768640468719,0.87432161,3299.0,3297.9,0.63939108]
[1768640469015,0.87432161,3298.9,3297.9,0.63939108]
[1768640469214,0.87432161,3298.8,3297.9,0.63939108]
[1768640469417,0.00373742,3299.3,3297.9,0.63939108]
[1768640469715,1.12876017,3299.2,3297.9,0.63939108]
[1768640469916,1.12876017,3299.1,3297.9,0.63939108]
[1768640470112,0.87432142,3299.0,3297.9,0.63939108]
[1768640470315,0.87432142,3298.9,3297.9,0.63939108]
[1768640470516,0.87432142,3298.8,3297.9,0.63939108]
[1768640470718,0.00373742,3299.3,3297.9,0.63939108]
[1768640470915,1.12876017,3299.2,3297.9,0.63939108]
[1768640471118,1.12876017,3299.1,3297.9,0.63939108]
[1768640471320,0.87432142,3299.0,3298.0,0.59029444]
[1768640471519,0.87432142,3298.9,3298.0,0.59029444]
[1768640471719,0.87432176,3298.8,3298.0,0.59029444]
[1768640471922,0.98505314,3299.3,3298.0,0.59029444]
[1768640472110,1.12876061,3299.2,3298.0,0.59029444]
[1768640472311,1.12876061,3299.1,3298.0,0.59029444]
[1768640472513,0.87432177,3299.0,3298.0,0.59029444]
[1768640472720,0.87432177,3298.9,3298.0,0.59029444]
[1768640472921,0.98505314,3299.3,3298.0,0.59029444]
[1768640473121,1.12876103,3299.2,3298.0,0.59029444]
[1768640473316,1.12876103,3299.1,3298.0,0.59029444]
[1768640473512,1.12876103,3299.0,3298.0,0.59029444]
[1768640473711,1.12876103,3298.9,3298.0,0.59029444]
[1768640473913,0.98505314,3299.3,3298.0,0.59029444]
[1768640474118,1.12876153,3299.2,3298.0,0.59029444]
[1768640474312,1.12876153,3299.1,3298.0,0.59029444]
[1768640474619,1.12876153,3299.0,3298.0,0.59029444]
[1768640474825,1.12876153,3298.9,3298.0,0.59029444]
[1768640475014,0.98505314,3299.3,3298.0,0.59029444]
[1768640475213,1.1287623,3299.2,3298.0,0.59029444]
[1768640475416,1.1287623,3299.1,3298.0,0.59029444]
[1768640475618,1.1287623,3299.0,3298.0,0.59029444]
[1768640475812,1.1287623,3298.9,3298.0,0.59029444]
[1768640476010,0.98131572,3299.1,3298.0,0.59029444]
[1768640476213,1.12876494,3299.0,3298.0,0.59029444]
[1768640476516,1.12876494,3298.9,3298.0,0.59029444]
[1768640476718,0.98131572,3299.1,3298.0,0.59029444]
[1768640476919,1.13097816,3299.0,3298.0,0.59029444]
[1768640477122,1.13097816,3298.9,3298.0,0.59029444]
[1768640477321,0.98131572,3299.1,3298.0,0.59029444]
[1768640477620,1.13096855,3299.0,3298.0,0.59029444]
[1768640477820,1.13096856,3298.9,3298.0,0.59029444]
[1768640478020,0.98131572,3299.1,3298.0,0.59029444]
[1768640478221,1.13096857,3299.0,3298.0,0.59029444]
[1768640478521,1.13096857,3298.9,3298.0,0.59029444]
[1768640478721,0.98131572,3299.1,3298.0,0.59029444]
[1768640478924,1.13096095,3299.0,3298.0,0.59029444]
[1768640479123,1.13096095,3298.9,3298.0,0.59029444]
[1768640479324,0.98131572,3299.1,3298.0,0.59029444]
[1768640479625,1.13095529,3299.0,3298.0,0.59029444]
[1768640479823,1.13095529,3298.9,3298.0,0.59029444]
[1768640480124,0.98131572,3299.1,3298.0,0.59029444]
[1768640480423,1.13095141,3299.0,3298.0,0.59029444]
[1768640480624,1.13095141,3298.9,3298.0,0.59029444]
[1768640480826,0.98131572,3299.1,3298.0,0.59029444]
[1768640481126,1.13095072,3299.0,3298.0,0.59029444]
[1768640481422,1.13095072,3298.9,3298.0,0.59029444]
[1768640481625,0.98131572,3299.1,3298.0,0.59029444]
[1768640481823,1.13094757,3299.0,3298.0,0.59029444]
[1768640482023,1.13094757,3298.9,3298.0,0.59029444]
[1768640482218,1.13094757,3298.8,3298.0,0.59029444]
[1768640482417,0.98131572,3299.1,3298.0,0.59029444]
[1768640482613,1.13092756,3299.0,3298.0,0.59029444]
[1768640482818,1.13092756,3298.9,3298.0,0.59029444]
[1768640483018,1.13092756,3298.8,3298.0,0.59029444]
[1768640483224,0.98131572,3299.1,3298.0,0.59029444]
[1768640483522,1.13089757,3299.0,3298.0,0.59029444]
[1768640483723,0.87425649,3298.9,3298.0,0.59029444]
[1768640483921,0.87425649,3298.8,3298.0,0.59029444]
[1768640484112,0.98131572,3299.1,3298.0,0.59029444]
[1768640484316,1.12718928,3299.0,3298.0,0.59029444]
[1768640484616,0.87055345,3298.9,3298.0,0.59029444]
[1768640484814,0.87055345,3298.8,3298.0,0.59029444]
[1768640485025,0.98131572,3299.1,3298.0,0.59029444]
[1768640485224,1.12716974,3299.0,3298.0,0.59029444]
[1768640485412,0.87053436,3298.9,3298.0,0.59029444]
[1768640485611,0.87053436,3298.8,3298.0,0.59029444]
[1768640485816,0.98131572,3299.1,3298.0,0.59029444]
[1768640486016,1.12733098,3299.0,3298.0,0.59029444]
[1768640486221,0.87051899,3298.9,3298.0,0.59029444]
[1768640486412,0.87051899,3298.8,3298.0,0.59029444]
[1768640486626,0.98131572,3298.9,3298.0,0.59029444]
[1768640486826,0.8705085,3298.8,3298.0,0.59029444]
[1768640487020,0.98131572,3298.9,3298.0,0.59029444]
[1768640487327,0.8705091,3298.8,3298.0,0.59029444]
[1768640487527,0.98131572,3298.9,3298.0,0.59029444]
[1768640491931,0.87042578,3298.8,3298.0,0.59029444]
[1768640492229,0.87042578,3298.7,3298.0,0.59029444]
[1768640492429,0.98131572,3298.9,3298.0,0.59029444]
[1768640492630,0.87041818,3298.8,3298.0,0.59029444]
[1768640492938,0.87041818,3298.7,3298.0,0.59029444]
[1768640493130,0.98131572,3299.1,3298.0,0.59029444]
[1768640493428,1.12719284,3299.0,3298.0,0.59029444]
[1768640493729,0.87041242,3298.9,3298.0,0.59029444]
[1768640493928,0.87041242,3298.8,3298.0,0.59029444]
[1768640494129,0.87041242,3298.7,3298.0,0.59029444]
[1768640494330,0.98131572,3299.1,3298.0,0.59029444]
[1768640494518,1.12718749,3299.0,3298.0,0.59029444]
[1768640494718,0.8704083,3298.9,3298.0,0.59029444]
[1768640494931,0.8704083,3298.8,3298.0,0.59029444]
[1768640495123,0.8704083,3298.7,3298.0,0.59029444]
[1768640495324,0.98131572,3299.1,3298.0,0.59029444]
[1768640495526,1.12718389,3299.0,3298.0,0.59029444]
[1768640495723,0.87040553,3298.9,3298.0,0.59029444]
[1768640496031,0.87040553,3298.8,3298.0,0.59029444]
[1768640496231,0.87040553,3298.7,3298.0,0.59029444]
[1768640496433,0.98131572,3299.1,3298.0,0.59029444]
[1768640496732,1.12718187,3299.0,3298.0,0.59029444]
[1768640496931,0.87040387,3298.9,3298.0,0.59029444]
[1768640497231,0.87040387,3298.8,3298.0,0.59029444]
[1768640497420,0.87040387,3298.7,3298.0,0.59029444]
[1768640497619,0.98131572,3299.2,3298.0,0.59029444]
[1768640497823,1.12718151,3299.1,3298.0,0.59029444]
[1768640498021,1.12718151,3299.0,3298.0,0.59029444]
[1768640498223,0.8704036,3298.9,3298.0,0.59029444]
[1768640498433,0.8704036,3298.8,3298.0,0.59029444]
[1768640498633,0.8704036,3298.7,3298.0,0.59029444]
[1768640498836,0.98131572,3299.2,3298.0,0.59029444]
[1768640499027,1.12718378,3299.1,3298.0,0.59029444]
[1768640499227,1.12718378,3299.0,3298.0,0.59029444]
[1768640499428,0.87040536,3298.9,3298.0,0.59029444]
[1768640499626,0.87040536,3298.8,3298.0,0.59029444]
[1768640499831,0.87040536,3298.7,3298.0,0.59029444]
[1768640500031,0.98131572,3299.2,3298.0,0.59029444]
[1768640500236,1.127188,3299.1,3298.0,0.59029444]
[1768640500534,1.127188,3299.0,3298.0,0.59029444]
[1768640500736,0.87040862,3298.9,3298.0,0.59029444]
[1768640500938,0.87040862,3298.8,3298.0,0.59029444]
[1768640501137,0.87040862,3298.7,3298.0,0.59029444]
[1768640501338,0.98131572,3299.2,3298.0,0.59029444]
[1768640501541,1.1272027,3299.1,3298.0,0.59029444]
[1768640501740,1.1272027,3299.0,3298.0,0.59029444]
[1768640501939,0.98131572,3299.2,3298.0,0.59029444]
[1768640502142,1.12720231,3299.1,3298.0,0.59029444]
[1768640502340,1.12720231,3299.0,3298.0,0.59029444]
[1768640502638,0.98131572,3299.2,3298.0,0.59029444]
[1768640502843,1.12721404,3299.1,3298.0,0.59029444]
[1768640503032,1.12721404,3299.0,3298.0,0.59029444]
[1768640503233,0.98131572,3299.2,3298.0,0.59029444]
[1768640503434,1.12722783,3299.1,3298.0,0.59029444]
[1768640503632,1.12722783,3299.0,3298.0,0.59029444]
[1768640503831,0.98131572,3299.2,3298.0,0.59029444]
[1768640504041,1.12722828,3299.1,3298.0,0.59029444]
[1768640504240,1.12722828,3299.0,3298.0,0.59029444]
[1768640504541,0.98131572,3299.2,3298.0,0.59029444]
[1768640504742,1.12724424,3299.1,3298.0,0.59029444]
[1768640505042,1.12724424,3299.0,3298.0,0.59029444]
[1768640505233,0.98131572,3299.2,3298.0,0.59029444]
[1768640505434,6.16326235,3299.1,3298.0,0.59029444]
[1768640505634,1.12726235,3299.0,3298.0,0.59029444]
[1768640505934,0.98131572,3299.2,3298.0,0.59029444]
[1768640506134,1.12726235,3299.1,3298.0,0.59029444]
[1768640506342,1.12726235,3299.0,3298.0,0.59029444]
[1768640506537,0.98131572,3299.2,3298.0,0.59029444]
[1768640506836,1.12727956,3299.1,3298.0,0.59029444]
[1768640507034,1.12727956,3299.0,3298.0,0.59029444]
[1768640507230,0.98131572,3299.2,3298.0,0.59029444]
[1768640507434,1.12729638,3299.1,3298.0,0.59029444]
[1768640507635,1.12729638,3299.0,3298.0,0.59029444]
[1768640507834,0.98131572,3299.2,3298.0,0.59029444]
[1768640508034,1.12729638,3299.1,3298.0,0.59029444]
[1768640508235,1.12729638,3299.0,3298.0,0.59029444]
[1768640508535,0.98131572,3299.2,3298.0,0.59029444]
[1768640508735,1.12731699,3299.1,3298.0,0.59029444]
[1768640508937,1.12731699,3299.0,3298.0,0.59029444]
[1768640509138,0.98131572,3299.2,3298.0,0.59029444]
[1768640509436,1.12734291,3299.1,3298.0,0.59029444]
[1768640509636,1.12734291,3299.0,3298.0,0.59029444]
[1768640509836,0.98131572,3299.2,3298.0,0.59029444]
[1768640510046,1.12734286,3299.1,3298.0,0.59029444]
[1768640510344,1.12734286,3299.0,3298.0,0.59029444]
[1768640510546,0.98131572,3299.2,3298.0,0.59029444]
[1768640510745,1.12737636,3299.1,3298.0,0.59029444]
[1768640510939,1.12737636,3299.0,3298.0,0.59029444]
[1768640511142,0.98131572,3299.2,3298.0,0.59029444]
[1768640511340,1.12742665,3299.1,3298.0,0.59029444]
[1768640511541,1.12742665,3299.0,3298.0,0.59029444]
[1768640511741,0.87059289,3298.9,3298.0,0.59029444]
[1768640511940,0.98131572,3299.2,3298.0,0.59029444]
[1768640512141,1.12742677,3299.1,3298.0,0.59029444]
[1768640512345,1.12742677,3299.0,3298.0,0.59029444]
[1768640512549,0.87059298,3298.9,3298.0,0.59029444]
[1768640512845,0.98131572,3299.2,3298.0,0.59029444]
[1768640513046,1.127434,3299.1,3298.0,0.59029444]
[1768640513248,1.127434,3299.0,3298.0,0.59029444]
[1768640513447,0.87059839,3298.9,3298.0,0.59029444]
[1768640513748,0.98131572,3299.2,3298.0,0.59029444]
[1768640513940,1.12744385,3299.1,3298.0,0.59029444]
[1768640514142,1.12744385,3299.0,3298.0,0.59029444]
[1768640514340,0.87060595,3298.9,3298.0,0.59029444]
[1768640514543,0.98131572,3299.2,3298.0,0.59029444]
[1768640514738,1.12667202,3299.1,3298.0,0.59029444]
[1768640514940,1.12667202,3299.0,3298.0,0.59029444]
[1768640515240,0.86983167,3298.9,3298.0,0.59029444]
[1768640515439,0.98131572,3299.2,3298.0,0.59029444]
[1768640515639,1.12668674,3299.1,3298.0,0.59029444]
[1768640515841,1.12668674,3299.0,3298.0,0.59029444]
[1768640516042,0.86984303,3298.9,3298.0,0.59029444]
[1768640516242,0.98131572,3299.2,3298.0,0.59029444]
[1768640516549,1.12671244,3299.1,3298.0,0.59029444]
[1768640516748,1.12671244,3299.0,3298.0,0.59029444]
[1768640517049,0.86986293,3298.9,3298.0,0.59029444]
[1768640517251,0.98131572,3299.2,3298.0,0.59029444]
[1768640517460,1.12671199,3299.1,3298.0,0.59029444]
[1768640517749,1.12671199,3299.0,3298.0,0.59029444]
[1768640517951,0.86986257,3298.9,3298.0,0.59029444]
[1768640518151,0.98131572,3299.2,3298.0,0.59029444]
[1768640518349,1.12671134,3299.1,3298.0,0.59029444]
[1768640518544,1.12671134,3299.0,3298.0,0.59029444]
[1768640518756,0.86986206,3298.9,3298.0,0.59029444]
[1768640518951,0.98131572,3299.2,3298.0,0.59029444]
[1768640519150,1.12671134,3299.1,3298.0,0.59029444]
[1768640519345,1.12671134,3299.0,3298.0,0.59029444]
[1768640519545,0.86986206,3298.9,3298.0,0.59029444]
[1768640519745,0.98131572,3299.2,3298.0,0.59029444]
[1768640519944,1.12671057,3299.1,3298.0,0.59029444]
[1768640520145,1.12671057,3299.0,3298.0,0.59029444]
[1768640520347,0.86986147,3298.9,3298.0,0.59029444]
[1768640520549,0.98131572,3299.2,3298.0,0.59029444]
[1768640520748,1.12671018,3299.1,3298.0,0.59029444]
[1768640521045,1.12671018,3299.0,3298.0,0.59029444]
[1768640521246,0.86986117,3298.9,3298.0,0.59029444]
[1768640521457,0.98131572,3299.2,3298.0,0.59029444]
[1768640521752,1.12670915,3299.1,3298.0,0.59029444]
[1768640521953,2.10802487,3299.0,3298.0,0.59029444]
[1768640522150,0.86986041,3298.9,3298.0,0.59029444]
[1768640522350,0.98131572,3299.0,3298.0,0.59029444]
[1768640522551,0.86986012,3298.9,3298.0,0.59029444]
[1768640522754,0.98131572,3299.0,3298.0,0.59029444]
[1768640522954,0.86986012,3298.9,3298.0,0.59029444]
[1768640523147,0.98131572,3299.0,3298.0,0.59029444]
[1768640523342,1.12670859,3298.9,3298.0,0.59029444]
[1768640523551,0.2568486,3298.8,3298.0,0.59029444]
[1768640523850,0.2568486,3298.7,3298.0,0.59029444]
[1768640524051,0.98131572,3299.0,3298.0,0.59029444]
[1768640524251,1.12670837,3298.9,3298.0,0.59029444]
[1768640524551,0.25684855,3298.8,3298.0,0.59029444]
[1768640524750,0.25684855,3298.7,3298.0,0.59029444]
[1768640524950,0.98131572,3299.0,3298.0,0.59029444]
[1768640525250,1.12670854,3298.9,3298.0,0.59029444]
[1768640525453,0.25684859,3298.8,3298.0,0.59029444]
[1768640525653,0.25684859,3298.7,3298.0,0.59029444]
[1768640525853,0.98131572,3299.0,3298.0,0.59029444]
[1768640526055,1.12670848,3298.9,3298.0,0.59029444]
[1768640526261,0.25684857,3298.8,3298.0,0.59029444]
[1768640526552,0.25684857,3298.7,3298.0,0.59029444]
[1768640526754,0.98131572,3299.0,3298.0,0.59029444]
[1768640526956,1.12670849,3298.9,3298.0,0.59029444]
[1768640527157,0.25684857,3298.8,3298.0,0.59029444]
[1768640527358,0.25684857,3298.7,3298.0,0.59029444]
[1768640527559,0.98131572,3299.0,3298.0,0.59029444]
[1768640527758,1.12669135,3298.9,3298.0,0.59029444]
[1768640527958,0.25684378,3298.8,3298.0,0.59029444]
[1768640528253,0.25684378,3298.7,3298.0,0.59029444]
[1768640528449,0.98131572,3299.0,3298.0,0.59029444]
[1768640528649,1.12666898,3298.9,3298.0,0.59029444]
[1768640528863,0.25683864,3298.8,3298.0,0.59029444]
[1768640529060,0.98131572,3299.0,3298.0,0.59029444]
[1768640529260,1.12666898,3298.9,3298.0,0.59029444]
[1768640529460,0.25683864,3298.8,3298.0,0.59029444]
[1768640529653,0.98131572,3299.0,3298.0,0.59029444]
[1768640529953,1.12665507,3298.9,3298.0,0.59029444]
[1768640530153,0.25683547,3298.8,3298.0,0.59029444]
[1768640530350,0.98131572,3299.0,3298.0,0.59029444]
[1768640530550,1.12664451,3298.9,3298.0,0.59029444]
[1768640530750,0.25683306,3298.8,3298.0,0.59029444]
[1768640530952,0.00373742,3299.3,3298.0,0.59029444]
[1768640531156,0.98131572,3299.0,3298.0,0.59029444]
[1768640531356,1.12664449,3298.9,3298.0,0.59029444]
[1768640531552,0.25683305,3298.8,3298.0,0.59029444]
[1768640531855,0.98131572,3299.0,3298.0,0.59029444]
[1768640532054,1.12663597,3298.9,3298.0,0.59029444]
[1768640532254,0.86980486,3298.8,3298.0,0.59029444]
[1768640532453,0.86980486,3298.7,3298.0,0.59029444]
[1768640532654,0.98131572,3299.0,3298.0,0.59029444]
[1768640532855,1.12662875,3298.9,3298.0,0.59029444]
[1768640533153,1.12662875,3298.8,3298.0,0.59029444]
[1768640533355,0.86979928,3298.7,3298.0,0.59029444]
[1768640533556,1.709,3299.0,3298.0,0.59029444]
[1768640533760,0.86979445,3298.9,3298.0,0.59029444]
[1768640533960,0.86979445,3298.8,3298.0,0.59029444]
[1768640534162,0.86979445,3298.7,3298.0,0.59029444]
[1768640534363,1.709,3299.0,3298.0,0.59029444]
[1768640534562,0.86979053,3298.9,3298.0,0.59029444]
[1768640534764,0.86979053,3298.8,3298.0,0.59029444]
[1768640534960,0.86979053,3298.7,3298.0,0.59029444]
[1768640535161,1.709,3299.0,3298.0,0.59029444]
[1768640535358,0.86978723,3298.9,3298.0,0.59029444]
[1768640535562,0.86978723,3298.8,3298.0,0.59029444]
[1768640535859,0.86978723,3298.7,3298.0,0.59029444]
[1768640536060,1.709,3299.0,3298.0,0.59029444]
[1768640536260,0.86978723,3298.9,3298.0,0.59029444]
[1768640536462,0.86978723,3298.8,3298.0,0.59029444]
[1768640536661,0.86978723,3298.7,3298.0,0.59029444]
[1768640536864,1.709,3299.0,3298.0,0.59029444]
[1768640537066,0.86978448,3298.9,3298.0,0.59029444]
[1768640537262,0.86978448,3298.8,3298.0,0.59029444]
[1768640537562,0.86978448,3298.7,3298.0,0.59029444]
[1768640537762,1.709,3299.0,3298.0,0.59029444]
[1768640537964,0.86978225,3298.9,3298.0,0.59029444]
[1768640538165,0.86978225,3298.8,3298.0,0.59029444]
[1768640538465,0.86978225,3298.7,3298.0,0.59029444]
[1768640538665,1.709,3299.0,3298.0,0.59029444]
[1768640538861,0.86978046,3298.9,3298.0,0.59029444]
[1768640539061,0.86978046,3298.8,3298.0,0.59029444]
[1768640539361,0.86978046,3298.7,3298.0,0.59029444]
[1768640539560,1.709,3299.0,3298.0,0.59029444]
[1768640539766,0.86977912,3298.9,3298.0,0.59029444]
[1768640539967,0.86977912,3298.8,3298.0,0.59029444]
[1768640540267,0.86977912,3298.7,3298.0,0.59029444]
[1768640540467,1.709,3299.0,3298.0,0.59029444]
[1768640540766,0.86977766,3298.9,3298.0,0.59029444]
[1768640540966,0.86977766,3298.8,3298.0,0.59029444]
[1768640541166,0.86977766,3298.7,3298.0,0.59029444]
[1768640541368,1.709,3299.0,3298.0,0.59029444]
[1768640541567,0.86977693,3298.9,3298.0,0.59029444]
[1768640541868,0.86977693,3298.8,3298.0,0.59029444]
[1768640542070,1.709,3299.0,3298.0,0.59029444]
[1768640563285,0.25684438,3298.9,3298.0,0.59029444]
[1768640563480,0.25684438,3298.8,3298.0,0.59029444]
[1768640563681,1.709,3299.0,3298.0,0.59029444]
[1768640563880,0.25684434,3298.9,3298.0,0.59029444]
[1768640564075,0.25684434,3298.8,3298.0,0.59029444]
[1768640564275,1.709,3299.0,3298.0,0.59029444]
[1768640564476,0.25684483,3298.9,3298.0,0.59029444]
[1768640564681,0.25684483,3298.8,3298.0,0.59029444]
[1768640564883,0.25684514,3298.7,3298.0,0.59029444]
[1768640565075,1.709,3299.0,3298.0,0.59029444]
[1768640565276,0.25684547,3298.9,3298.0,0.59029444]
[1768640565583,0.25684547,3298.8,3298.0,0.59029444]
[1768640565786,0.25684547,3298.7,3298.0,0.59029444]
[1768640565981,1.709,3299.0,3298.0,0.59029444]
[1768640566184,0.25684528,3298.9,3298.0,0.59029444]
[1768640566388,0.25684528,3298.8,3298.0,0.59029444]
[1768640566578,0.25684528,3298.7,3298.0,0.59029444]
[1768640566778,1.709,3299.0,3298.0,0.59029444]
[1768640567074,0.2568449,3298.9,3298.0,0.59029444]
[1768640567281,0.2568449,3298.8,3298.0,0.59029444]
[1768640567478,0.2568449,3298.7,3298.0,0.59029444]
[1768640567784,1.709,3299.0,3298.0,0.59029444]
[1768640568183,0.25684452,3298.9,3298.0,0.59029444]
[1768640568386,0.25684452,3298.8,3298.0,0.59029444]
[1768640568684,0.25684452,3298.7,3298.0,0.59029444]
[1768640568879,1.709,3299.0,3298.0,0.59029444]